Cogmind - Beta 15 @@@ ROGUE MODE // 2025.08.11 @ 01:12:18 Player: Naughtyusername Result: Destroyed by B-75 Beast with Magnetic Acceleration Cannon Performance ------------- Evolutions (4) 2000 Regions Visited (7) 1400 Robots Destroyed (26) 130 Value Destroyed (465) 465 Prototype IDs (19) 380 Alien Tech Used (0) 0 Bonus (800) 800 TOTAL SCORE: 5175 Bonus ------- Registered with UFD 300 Met Optimus in HQ 500 Cogmind --------- Core Integrity 0/850 Matter 285/300 Energy 100/100 System Corruption 16% Temperature Cool (12) Movement Core (50) Location -6/Extension Parts ------- > --- POWER (1) -------- (None) > --- PROPULSION (6) --- (None) > --- UTILITY (6) ------ Advanced Signal Interpreter A0-MCA's Component Scanner > --- WEAPON (2) ------- (None) > --- INVENTORY (5) ---- Advanced Terrain Scanner System Shield Heavy Plasma Cannon Peak State ------------ > --- POWER ------------ Light Angular Momentum Engine > --- PROPULSION ------- Xenon Bombardment Thruster Nuclear Pulse Thruster Nuclear Pulse Thruster Nuclear Pulse Thruster > --- UTILITY ---------- Advanced Sensor Array Advanced Signal Interpreter Advanced Terrain Scanner Improved Terrain Scan Processor Hacking Suite A0-MCA's Component Scanner > --- WEAPON ----------- Heavy Plasma Cannon Katana > --- INVENTORY -------- System Shield System Shield [Rating: 62] Favorites ----------- Power Light Ion Engine Engine Light Ion Engine Power Core Light Fission Core Propulsion Armored Wheel Leg Aluminum Leg Wheel Armored Wheel Flight Unit Nuclear Pulse Thruster Utility Huge Storage Unit Device Advanced Sensor Array Storage Huge Storage Unit Processor A0-MCA's Component Scanner Hackware Hacking Suite Protection Light Armor Plating Weapon Heavy Assault Rifle Energy Gun EM Pulse Gun Energy Cannon Heavy Plasma Cannon Ballistic Gun Heavy Assault Rifle Special Weapon Mining Laser Slashing Weapon Katana Build | -11 -10 -10 -8 -6 -6 -6 -6 ------- Run | Yrd Mat Sub Scr Fac Was Fac Ext Slots Evolved 8 | . . . . 8 . . . Power . | . . . . . . . . Propulsion 4 | . . . . 4 . . . Utility 4 | . . . . 4 . . . Weapon . | . . . . . . . . Parts Attached 42 | 5 10 2 6 13 . 6 . Power 4 | . 1 . 1 1 . 1 . Engine 2 | . 1 . . . . 1 . Core 2 | . . . 1 1 . . . Reactor . | . . . . . . . . Propulsion 11 | 2 3 . 2 2 . 2 . Treads . | . . . . . . . . Leg . | . . . . . . . . Wheel 5 | 2 3 . . . . . . Hover . | . . . . . . . . Flight 6 | . . . 2 2 . 2 . Utility 19 | 2 3 1 3 7 . 3 . Device 7 | 2 . 1 1 2 . 1 . Storage 3 | . 2 . 1 . . . . Processor 5 | . . . 1 4 . . . Hackware 3 | . . . . 1 . 2 . Protection 1 | . 1 . . . . . . Artifact . | . . . . . . . . Weapon 8 | 1 3 1 . 3 . . . Energy Gun . | . . . . . . . . Energy Cannon 1 | . . . . 1 . . . Ballistic Gun 4 | 1 3 . . . . . . Ballistic Cannon . | . . . . . . . . Launcher . | . . . . . . . . Special Weapon 1 | . . 1 . . . . . Impact Weapon . | . . . . . . . . Slashing Weapon 2 | . . . . 2 . . . Piercing Weapon . | . . . . . . . . Special Melee Weapon . | . . . . . . . . Unidentified Prototypes . | . . . . . . . . Corrupted Parts 1 | 1 . . . . . . . System Corruption 1 | 1 . . . . . . . Parts Lost 13 | . 2 . . 1 1 2 7 Power 2 | . . . . . 1 . 1 Propulsion 5 | . . . . 1 . 2 2 Utility 4 | . 1 . . . . . 3 Weapon 2 | . 1 . . . . . 1 Highest Loss Streak 4 | . 2 . . 1 1 1 4 To Critical Strikes . | . . . . . . . . Average Backups 15 | 6 16 23 23 4 4 3 3 Power 1 | 1 1 1 1 . 1 . . Propulsion 5 | 4 5 7 9 . . . . Utility 6 | . 7 11 9 3 2 2 2 Weapon 2 | 1 3 4 3 . 1 1 1 Tool/Special . | . . . . . . . . Unused Backups 35 | 8 2 . 21 2 . 1 1 Power 4 | 1 1 . 2 . . . . Propulsion 11 | 4 1 . 6 . . . . Utility 16 | 1 . . 11 2 . 1 1 Weapon 4 | 2 . . 2 . . . . Tool/Special . | . . . . . . . . Average Slot Usage (%) 88 | . 99 100 98 63 69 66 45 Engine 10 | . 13 14 13 . . 5 1 Wheel 19 | . 27 28 27 . . . . Flight 5 | . . . . 18 18 15 7 Device 10 | . 6 9 14 9 13 9 5 Storage 9 | . 14 14 13 . . . . Processor 6 | . . . . 23 26 21 14 Hackware 1 | . . . . 1 . 6 9 Protection 2 | . 7 4 . . . . . Ballistic Gun 19 | . 28 23 27 . . . . Slashing Weapon 1 | . . . . 2 6 4 5 Peak Build Rating 62 | 9 13 13 27 50 50 62 47 Average Rating 23 | 7 12 13 17 41 48 48 33 On Entrance 25 | 6 7 13 13 27 50 42 47 Naked Turns . | . . . . . . . . Heaviest Build 92 | 15 92 92 90 14 11 13 12 Greatest Support 26 | 26 26 24 24 17 17 24 12 Greatest Overweight (x) 3 | . 3 3 3 1 . 1 . Average Overweight (x) 1 | . 1 3 2 . . . . Largest Inventory Capacity 25 | 8 25 25 25 10 5 5 5 Average Capacity 17 | 8 20 25 23 5 5 5 5 Most Carried 25 | 8 23 23 25 5 4 5 3 Average Carried 15 | 6 16 23 23 4 4 3 3 Final Capacity 25 | 8 25 25 5 5 5 5 5 Final Carried 23 | 5 23 23 5 4 4 3 3 Class Distribution -------------------- 76% | Mutant 18% | Scout 5% | Hacker-Mutant Dominant Class ---------------- Mutant | -10/Materials Mutant | -10/Subcaves Mutant | -8/Scraptown Scout | -6/Factory Scout | -6/Waste Scout | -6/Factory Hacker-Mutant | -6/Extension Resources | -11 -10 -10 -8 -6 -6 -6 -6 ----------- Run | Yrd Mat Sub Scr Fac Was Fac Ext Matter Collected 1124 | 268 369 59 103 . . 227 98 Remotely . | . . . . . . . . Salvage Created 960 | 169 510 30 24 . . 227 . Parts 69 | 11 43 7 3 . . 5 . Haulers Intercepted 2 | . 2 . . . . . . Recyclers Shooed 3 | . . . . . . 3 . Parts Field Recycled . | . . . . . . . . Retrieved Matter . | . . . . . . . . Parts Self-Destructed 15 | . . 12 3 . . . . Prevented . | . . . . . . . . Kills | -11 -10 -10 -8 -6 -6 -6 -6 ------- Run | Yrd Mat Sub Scr Fac Was Fac Ext Combat Hostiles Destroyed 15 | . 12 3 . . . . . Guns 15 | . 12 3 . . . . . Classes Destroyed 6 | 2 4 . . . . . . Tunneler 5 | 4 1 . . . . . . Hauler 2 | . 2 . . . . . . Recycler 3 | 1 . . . . . 2 . Watcher 1 | . 1 . . . . . . Swarmer 8 | . 5 3 . . . . . Grunt 7 | . 7 . . . . . . Best Kill Streak 3 | 3 3 3 . . . 2 . Combat Bots Only 3 | . 3 3 . . . . . Max Kills in Single Turn 2 | 2 1 2 . . . 1 . Gunslinging 1 | . . 1 . . . . . Exploded . | . . . . . . . . Melee . | . . . . . . . . Uniques/NPCs Destroyed . | . . . . . . . . Combat | -11 -10 -10 -8 -6 -6 -6 -6 -------- Run | Yrd Mat Sub Scr Fac Was Fac Ext Hostile Shots Fired 231 | . 44 6 . 2 2 30 147 Missed 103 | . 16 1 . . 1 18 67 Hits 128 | . 28 5 . 2 1 12 80 Melee 1 | . . . . . 1 . . Projectile 127 | . 28 5 . 2 . 12 80 Critical Strikes 2 | . 1 . . . 1 . . Damage Taken 1712 | 20 460 39 . 39 66 191 897 Core 982 | . 112 17 . 20 47 52 734 Absorbed by Shields 51 | . . . . . . . 51 Core Remaining (%) 74 | 100 . . 48 . . . . Volleys Fired 97 | 6 49 17 4 11 . 10 . Largest 2 | 2 2 2 1 1 . 1 . Hottest 100 | 60 46 100 23 90 . 90 . Shots Fired 154 | 12 97 20 4 11 . 10 . Gun 119 | 12 97 6 4 . . . . Cannon 21 | . . . . 11 . 10 . Launcher . | . . . . . . . . Special 14 | . . 14 . . . . . Kinetic 113 | 6 97 6 4 . . . . Thermal 35 | . . 14 . 11 . 10 . Explosive . | . . . . . . . . Electromagnetic 6 | 6 . . . . . . . Robot Hit Streak 8 | 5 8 2 6 . . . . Robot Miss Streak 7 | 3 7 2 . . . . . Penetration Max . | . . . . . . . . Secondary Targets 1 | . . 1 . . . . . Max Gunslinging Chain 1 | . . 1 . . . . . Shots Hit Robots 72 | 6 51 4 4 . . 7 . Core Hits 35 | 5 23 3 1 . . 2 1 Critical Kills 1 | . 1 . . . . . . Critical Parts Destroyed 1 | . 1 . . . . . . Critical Strikes 3 | . 2 . . . . 1 . Destroy 2 | . 2 . . . . . . Sever 1 | . . . . . . 1 . Melee Attacks 26 | . . . . 7 . 16 3 Impact . | . . . . . . . . Slashing 26 | . . . . 7 . 16 3 Piercing . | . . . . . . . . Sneak Attacks 2 | . . . . . . 2 . Combat Hostiles . | . . . . . . . . Follow-up Attacks . | . . . . . . . . Damage Inflicted 1495 | 193 856 56 55 . . 304 31 Guns 993 | 120 762 56 55 . . . . Cannons . | . . . . . . . . Explosions 167 | 73 94 . . . . . . Melee 302 | . . . . . . 302 . Ramming 33 | . . . . . . 2 31 Kinetic 927 | 54 762 56 55 . . . . Thermal 73 | 73 . . . . . . . Explosive 94 | . 94 . . . . . . Electromagnetic 66 | 66 . . . . . . . Impact . | . . . . . . . . Slashing 302 | . . . . . . 302 . Piercing . | . . . . . . . . Highest Corruption 16 | 1 1 1 . 1 11 11 16 Average Corruption 4 | 1 1 1 . 1 8 11 11 Corruption Purged . | . . . . . . . . Corruption Blocked . | . . . . . . . . Effects 39 | 1 12 1 . 1 3 15 6 Message Errors 11 | . 6 . . . . 5 . Matter Fused 4 | . 1 . . . . 2 1 Heat Flow Errors 5 | . 1 . . 1 . 2 1 Energy Discharges 3 | . 1 . . . . 1 1 Parts Rejected 1 | . 1 . . . . . . Parts Fused 1 | . . 1 . . . . . Data Loss (minor) 3 | 1 . . . . . 2 . Data Loss (major) 5 | . 2 . . . . 2 1 Misdirections 6 | . . . . . 3 1 2 Overload Shots . | . . . . . . . . Overflow Damage 14 | . . . . . . 14 . Projectiles . | . . . . . . . . Explosions . | . . . . . . . . Melee 14 | . . . . . . 14 . Knockbacks . | . . . . . . . . Impact . | . . . . . . . . Kinetic . | . . . . . . . . Secondary . | . . . . . . . . Self-Inflicted Damage 161 | 21 125 . . . . 1 14 Shots 3 | 1 2 . . . . . . Rammed 14 | . . . . . . 2 12 Targets Rammed 14 | . . . . . . 2 12 Kicked . | . . . . . . . . Crushed . | . . . . . . . . Highest Temperature 268 | 12 177 . . 206 . 268 172 Average Temperature 59 | 12 30 . . 57 . 76 77 Received Heat Transfer 376 | . 123 . . 18 . 12 223 Siege Activations . | . . . . . . . . Martial Activations . | . . . . . . . . Shielding Activations . | . . . . . . . . Robots Disrupted . | . . . . . . . . Combat Hostiles . | . . . . . . . . Robots Corrupted . | . . . . . . . . Combat Hostiles . | . . . . . . . . Parts Fried . | . . . . . . . . Impact Corruptions . | . . . . . . . . Robots Melted . | . . . . . . . . Combat Hostiles . | . . . . . . . . Parts Melted . | . . . . . . . . Heat Transferred 100 | 100 . . . . . . . Parts Sabotaged . | . . . . . . . . Parts Stolen . | . . . . . . . . Parts Stripped . | . . . . . . . . Power Chain Reactions 1 | 1 . . . . . . . Alert | -11 -10 -10 -8 -6 -6 -6 -6 ------- Run | Yrd Mat Sub Scr Fac Was Fac Ext Maximum Alert Level 1 | . 1 . . . . . . Low Security (%) 82 | 100 62 . . 100 100 100 100 Level 1 17 | . 37 . . . . . . Level 2 . | . . . . . . . . Level 3 . | . . . . . . . . Level 4 . | . . . . . . . . Level 5 . | . . . . . . . . High Security . | . . . . . . . . Max Security . | . . . . . . . . Peak Influence 275 | 15 275 . . 41 . 64 30 Initial 18 | . 3 . . . . . 18 Average 63 | 2 127 . . 7 . 13 6 Influence Increases 1065 | 25 576 70 5 145 . 154 90 Destroy 0b10 Robot/C 300 | . 240 60 . . . . . Destroy 0b10 Robot/NC 60 | 25 20 . 5 . . 10 . Destroy Leader 66 | . 56 10 . . . . . Successful Hack 62 | . 13 . . 25 . 24 . Select Force Hacks 30 | . 30 . . . . . . Disable Machine 60 | . 45 . . 15 . . . Destroy Structure 67 | . 37 . . 15 . 15 . Partial Spotted 75 | . 15 . . 45 . 15 . Lose Combat Pursuer 345 | . 120 . . 45 . 90 90 Influence Decreases 1050 | 20 581 20 55 145 . 116 113 Entered New Map 72 | . 2 . 50 . . . 20 Time Decay 753 | 20 409 20 5 144 . 115 40 Lost Part 75 | . 20 . . 1 . 1 53 Purge Threat 150 | . 150 . . . . . . Squads Dispatched 11 | . 1 . . 4 . 2 4 Investigation 8 | . 1 . . 2 . 1 4 Extermination 3 | . . . . 2 . 1 . Reinforcement . | . . . . . . . . Assault . | . . . . . . . . Garrison . | . . . . . . . . Intercept . | . . . . . . . . Searches Triggered . | . . . . . . . . Construction Impeded . | . . . . . . . . Haulers Reinforced . | . . . . . . . . Active Scanning Responses . | . . . . . . . . Cargo Convoy Interrupts . | . . . . . . . . Stealth | -11 -10 -10 -8 -6 -6 -6 -6 --------- Run | Yrd Mat Sub Scr Fac Was Fac Ext Distress Signals 3 | . 2 . . . . 1 . Communications Jammed . | . . . . . . . . Distress Signals . | . . . . . . . . Times Spotted 70 | . 26 3 . 5 6 8 22 Peak Tracking Total 19 | . 4 3 . 2 6 4 19 Tactical Retreats 15 | . 7 . . 2 . 3 3 Traps | -11 -10 -10 -8 -6 -6 -6 -6 ------- Run | Yrd Mat Sub Scr Fac Was Fac Ext Traps Triggered 10 | . 5 . . 2 . 1 2 Indirectly . | . . . . . . . . Trap Hack Attempts . | . . . . . . . . Triggered . | . . . . . . . . Disarmed . | . . . . . . . . Reprogrammed . | . . . . . . . . Reused . | . . . . . . . . Traps Extracted . | . . . . . . . . Installed . | . . . . . . . . Triggered . | . . . . . . . . Machines | -11 -10 -10 -8 -6 -6 -6 -6 ---------- Run | Yrd Mat Sub Scr Fac Was Fac Ext Machines Disabled 4 | . 3 . . 1 . . . Max in Single Turn 2 | . 2 . . 1 . . . Garrison Access 3 | . . . . 1 . 2 . Machines Repaired . | . . . . . . . . Machines Dismantled . | . . . . . . . . Machines Sabotaged . | . . . . . . . . Overloaded Fab Kills . | . . . . . . . . Hacking | -11 -10 -10 -8 -6 -6 -6 -6 --------- Run | Yrd Mat Sub Scr Fac Was Fac Ext Machines Accessed 42 | . 8 . 7 14 . 9 4 Terminals 22 | . 6 . . 6 . 6 4 Fabricators 3 | . . . . 3 . . . Repair Stations . | . . . . . . . . Recycling Units 6 | . 2 . . 3 . 1 . Scanalyzers . | . . . . . . . . Garrison Access 4 | . . . . 2 . 2 . Total Hacks 139 | . 21 . 40 33 . 28 17 Successful 76 | . 9 . 40 13 . 13 1 Failed 63 | . 12 . . 20 . 15 16 Catastrophic 11 | . 1 . . 3 . 4 3 Database Lockouts . | . . . . . . . . Manual 41 | . 11 . . 17 . 13 . Terminals 72 | . 17 . . 17 . 21 17 Fabricators 9 | . . . . 9 . . . Repair Stations . | . . . . . . . . Recycling Units 10 | . 4 . . 4 . 2 . Scanalyzers . | . . . . . . . . Garrison Access 8 | . . . . 3 . 5 . Terminal Hacks 51 | . 4 . 40 1 . 5 1 Record 36 | . . . 36 . . . . Robot Analysis 3 | . . . 3 . . . . Prototype ID Bank 1 | . 1 . . . . . . Open Door 2 | . . . . . . 1 1 Branch Access Points 1 | . . . . . . 1 . Terminal Index 2 | . . . . 1 . 1 . Alert Level 1 | . 1 . . . . . . Unreport Threat 1 | . 1 . . . . . . Registered Components 1 | . . . . . . 1 . Registered Prototypes 1 | . . . . . . 1 . Zone Layout 1 | . 1 . . . . . . Proto ID Catalog 1 | . . . 1 . . . . Fabricator Hacks 3 | . . . . 3 . . . Network Status 3 | . . . . 3 . . . Repair Station Hacks . | . . . . . . . . Recycling Unit Hacks 3 | . 1 . . 2 . . . Retrieve Components 3 | . 1 . . 2 . . . Scanalyzer . | . . . . . . . . Garrison Access Hacks 3 | . . . . 1 . 2 . Seal Access 3 | . . . . 1 . 2 . Unauthorized Hacks 16 | . 4 . . 6 . 6 . Terminals 13 | . 3 . . 4 . 6 . Assimilate 1 | . . . . 1 . . . Botnet 10 | . 3 . . 3 . 4 . Skim 2 | . . . . . . 2 . Fabricators 2 | . . . . 2 . . . Report 1 | . . . . 1 . . . Haulers 1 | . . . . 1 . . . Repair Stations . | . . . . . . . . Recycling Units 1 | . 1 . . . . . . Tunnel 1 | . 1 . . . . . . Scanalyzers . | . . . . . . . . Garrison Access . | . . . . . . . . Data Cores Recovered . | . . . . . . . . Used . | . . . . . . . . Hacking Detections 32 | . 7 . . 13 . 8 4 Full Trace Events 7 | . . . . 2 . 1 4 Feedback Events . | . . . . . . . . Feedback Blocked . | . . . . . . . . Robot Schematics Acquired . | . . . . . . . . Robots Built . | . . . . . . . . Authchips . | . . . . . . . . Time . | . . . . . . . . Total Robot Build Rating . | . . . . . . . . Part Schematics Acquired . | . . . . . . . . Parts Built . | . . . . . . . . Authchips . | . . . . . . . . Time . | . . . . . . . . Total Part Build Rating . | . . . . . . . . Parts Repaired . | . . . . . . . . Time . | . . . . . . . . Parts Recycled . | . . . . . . . . Recycled Matter . | . . . . . . . . Retrieved Matter . | . . . . . . . . Retrieved Components 8 | . 7 . . 1 . . . Parts Scanalyzed . | . . . . . . . . Part Schematics Acquired . | . . . . . . . . Parts Damaged . | . . . . . . . . Bothacking | -11 -10 -10 -8 -6 -6 -6 -6 ------------ Run | Yrd Mat Sub Scr Fac Was Fac Ext Used RIF Installer . | . . . . . . . . Robots Hacked . | . . . . . . . . Non-combat . | . . . . . . . . Combat . | . . . . . . . . Robot Hacks Applied . | . . . . . . . . Relay Couplers Released . | . . . . . . . . Fabnet Peak Effective % . | . . . . . . . . Robots Rewired . | . . . . . . . . Allies Hacked . | . . . . . . . . Hacks Repelled . | . . . . . . . . Allies | -11 -10 -10 -8 -6 -6 -6 -6 -------- Run | Yrd Mat Sub Scr Fac Was Fac Ext Total Allies 2 | . . . . 1 . . 1 Largest Group 1 | . . . . 1 . . 1 Highest-Rated Group 31 | . . . . 10 . . 31 Highest-Rated Ally 31 | . . . . 10 . . 31 Total Orders . | . . . . . . . . Ally Attacks 6 | . . . . . . . 6 Total Damage 64 | . . . . . . . 64 Kills . | . . . . . . . . Allies Corrupted . | . . . . . . . . Allies Melted 1 | . . . . . . . 1 Intel | -11 -10 -10 -8 -6 -6 -6 -6 ------- Run | Yrd Mat Sub Scr Fac Was Fac Ext Active Infowar (turns) 3857 | 46 588 160 1754 577 55 528 149 Optics 719 | . . . . 576 55 88 . Sensors 3219 | . . 160 1754 577 55 524 149 Terrain 673 | 33 . . . 335 55 250 . Seismic 601 | 13 588 . . . . . . Robot Analysis Total 3 | . . . 3 . . . . Derelict Logs Recovered . | . . . . . . . . Drone Launches . | . . . . . . . . Drone Recoveries . | . . . . . . . . Exploration | -11 -10 -10 -8 -6 -6 -6 -6 ------------- Run | Yrd Mat Sub Scr Fac Was Fac Ext Turns Passed 4604 | 75 1215 223 1754 577 55 528 177 Spaces Moved 5183 | 41 784 105 1352 1441 157 1047 256 Core 22 | . . . . . . . 22 Treads . | . . . . . . . . Legs 25 | 25 . . . . . . . Wheels 2153 | 16 784 105 1248 . . . . Hover . | . . . . . . . . Flight 2983 | . . . 104 1441 157 1047 234 Fastest Speed 31 | 90 85 135 34 32 32 31 37 Average Speed 73 | 108 119 135 125 32 32 35 39 Slowest Speed 135 | 120 135 135 135 114 37 117 50 Overloaded Moves . | . . . . . . . . Propulsion Burnouts . | . . . . . . . . Robots Hopped 38 | . . . . 17 5 11 5 Potential Cave-ins . | . . . . . . . . Cave-ins Triggered . | . . . . . . . . Exploration Rate (%) 50 | 4 96 10 88 45 96 26 42 Regions Visited 7 Branch Regions 3 Pre-discovered Areas 1 | . 1 . . . . . . Known Exits Taken 1 | . . . . . . 1 . Unknown Exits Taken 4 | 1 1 1 1 . . . . Scrap Searched 4 | . . . 4 . . . . Spaces Dug 29 | . . . . 14 . 15 . Terrain Destroyed 74 | . 39 . . 17 . 18 . Melee 15 | . . . . 6 . 9 . Projectile 20 | . . . . 11 . 9 . AOE 39 | . 39 . . . . . . Terrain Rammed . | . . . . . . . . Walls Destroyed . | . . . . . . . . Machines Disabled . | . . . . . . . . Actions | -11 -10 -10 -8 -6 -6 -6 -6 --------- Run | Yrd Mat Sub Scr Fac Was Fac Ext Total 5728 | 60 962 137 1422 1512 154 1158 323 Wait 216 | . 83 13 . 26 3 64 27 Move 5108 | 40 783 104 1351 1409 148 1025 248 Hop 31 | . . . . 15 3 10 3 Pick Up 61 | 2 22 . 29 6 . 2 . Fast Attach 21 | 3 7 . . 7 . 4 . Attach 30 | 1 3 . 3 13 . 10 . Detach 28 | 2 . . 3 11 . 11 1 Swap 16 | 1 7 3 3 1 . 1 . Drop 51 | 5 8 . 29 6 . 3 . Fire 97 | 6 49 17 4 11 . 10 . Melee 26 | . . . . 7 . 16 3 Ram 16 | . . . . . . 2 14 Kick . | . . . . . . . . Crush . | . . . . . . . . Escape Stasis 27 | . . . . . . . 27 Rewire . | . . . . . . . . Trap . | . . . . . . . . Miscellaneous . | . . . . . . . . Route ------- -11/Scrapyard -10/Materials (discovered 6 exits: [*Mat x3] / [*Min x2] / [*Sub]) -10/Subcaves -8/Scraptown (discovered 2 exits: *Fac x2) -6/Factory (discovered 3 exits: *Fac x2 / *Low) -6/Waste -6/Factory (discovered 4 exits: Low x2 / *Ext x2) -6/Extension History --------- Turn | Location | Event 1 | -11/Scrapyard | Discovered new exit (range 3) 76 | -11/Scrapyard | Entered Materials 256 | -10/Materials | Discovered new exit (range 13) 307 | -10/Materials | Build established: Mutant 337 | -10/Materials | Discovered new exit (range 14) 517 | -10/Materials | Discovered new exit (range 16) 756 | -10/Materials | Discovered new exit (range 11) 926 | -10/Materials | Discovered new exit (range 15) 1283 | -10/Materials | Discovered new exit (range 6) 1291 | -10/Materials | Entered Subcaves 1292 | -10/Subcaves | Approached by a straggling Scientist 1460 | -10/Subcaves | Scientist uncovered a shortcut to Scraptown 1482 | -10/Subcaves | Core integrity fell below 50% 1514 | -10/Subcaves | Entered Scraptown 1514 | -8/Scraptown | System corruption cleaned by C-Scrubber 1640 | -8/Scraptown | Heard Great Nut preacher, LISTEN AND RECITE! 1785 | -8/Scraptown | Discovered new exit (range 13) 1922 | -8/Scraptown | Visited Assassins FH 1956 | -8/Scraptown | Visited Red Mages 1995 | -8/Scraptown | Visited Awakened 2024 | -8/Scraptown | Visited TADAMA 2257 | -8/Scraptown | Visited Cave Peace 2299 | -8/Scraptown | Visited UFD Registry 2299 | -8/Scraptown | Registered with UFD as "Helltube" 2367 | -8/Scraptown | Visited Shadow of the Wyrm 2397 | -8/Scraptown | Visited Fellowship of the Rings 2481 | -8/Scraptown | Visited Abandonware Association 2498 | -8/Scraptown | Learned abandonware demo "KABOOM.EXE" 2529 | -8/Scraptown | Visited Scrap Suit Storage 2554 | -8/Scraptown | Visited A0-MCA Data Center 2562 | -8/Scraptown | Given a B+ rating by A0-MCA 2568 | -8/Scraptown | Found A0-MCA's Component Scanner 2769 | -8/Scraptown | Visited Analyses Database 2797 | -8/Scraptown | Visited Junk Repository 2881 | -8/Scraptown | Visited Science Guys 2968 | -8/Scraptown | Visited Chapter 10 3011 | -8/Scraptown | Visited Supply Room 3242 | -8/Scraptown | Met Optimus 3242 | -8/Scraptown | Accepted into 0bPrime 3266 | -8/Scraptown | Discovered new exit (range 5) 3268 | -8/Scraptown | Entered Factory 3268 | -6/Factory | Evolved 8 slots: Propulsion x4, Utility x4 3294 | -6/Factory | Discovered new exit (range 18) 3480 | -6/Factory | Discovered new exit (range 3) 3481 | -6/Factory | Identified exit to Lower Caves 3559 | -6/Factory | Build established: Scout 3808 | -6/Factory | Discovered new exit (range 6) 3809 | -6/Factory | Identified exit to Factory 3845 | -6/Factory | Sucked down chute 3845 | -6/Factory | Entered Waste 3860 | -6/Waste | EMP discharged 3860 | -6/Waste | System corruption reached 10% 3862 | -6/Waste | Spotted C-40 Crusher 3875 | -6/Waste | Spotted C-40 Crusher 3882 | -6/Waste | Spotted C-40 Crusher 3882 | -6/Waste | Spotted C-40 Crusher 3882 | -6/Waste | Spotted C-40 Crusher 3888 | -6/Waste | Crushed by Compactor (1 part destroyed, 1 dropped) 3889 | -6/Waste | Discovered new exit (range 11) 3889 | -6/Waste | Spotted C-40 Crusher 3893 | -6/Waste | Identified exit to Factory 3900 | -6/Waste | Entered Factory 4170 | -6/Factory | Identified exit to Extension 4428 | -6/Factory | Entered Extension 4448 | -6/Extension | Rescued a captive Derelict 4584 | -6/Extension | Spotted B-75 Beast 4595 | -6/Extension | Core integrity fell below 50% 4595 | -6/Extension | Spotted B-75 Beast 4599 | -6/Extension | Core integrity fell below 20% 4605 | -6/Extension | Destroyed by B-75 Beast with Magnetic Acceleration Cannon Last Messages --------------- 04563_ System corrupted: Heat flow error (+204). 04577_ Nuclear Pulse Thruster destroyed. 04577_ Adv. Sensor Array destroyed. 04582_ Slammed into G-50 Soldier. 04582_ System Shield destroyed. 04582_ System corrupted by crushing effect (+4). 04583_ Slammed into G-50 Soldier. 04589_ System corrupted: Energy discharge (-29). 04589_ Slammed into G-50 Soldier. 04589_ Destabilizing: System corrupted (+1). 04590_ Slammed into G-50 Soldier. 04594_ Slammed into Y-54 Guardian. 04594_ Machine disabled. 04595_ Katana destroyed. 04595_ Slammed into G-50 Soldier. 04597_ Knocked back. 04602_ Acquired 4 matter. 04602_ Connecting with Door Terminal... 04602_ ALERT: Suspicious activity at Terminal E001. Dispatching Investigation squad. Map ----- +----------------------------------------------------+ | ??????????# = / #?????????????????????????????? | | ??????????# * # #?????????????????????????????? | | ??????????# # #?????????????????????????????? | | ??????????# # #?????????????????????????????? | | ??????????######## #?????????????????????????????? | | ?????????????????# #?????????????????????????????? | | ?????????????????# #?????????????????????????????? | | ?????????????????# #?????????????????????????????? | | ?????????????????# #?????????????????????????????? | | ?????????????????# #??##?##??????????????????????? | | ??????????????#### ### ## ### ##?????????????????? | | ???????????????""" "" "" ""#????????????????? | | ???????????????# g" " " #????????????????? | | ???????????????# g #????????????????? | | ???????????????# Y #????????????????? | | ??????########## Y #####????????????? | | ??? % BBgu ???????????? | | ??? %gBB ???????????? | | ??? ????????????? | | ??? % ????????????? | | ???? k R ????????????? | | ????############ BB ###??????????????? | | ???????????????# BB #????????????????? | | ???????????????# % #????????????????? | | ???????????????# #????????????????? | | ???????????????# @ #????????????????? | | ???????????????######T#"""#######????????????????? | | ????????????????????###??????????????????????????? | | ?????????????????????????????????????????????????? | | | | | | | | | | | | | | | | | | | | | | | | | | | | | | | | | | | | | | | | | | | +----------------------------------------------------+ Best States ------------- Heat Dissipation 37 Energy Generation 18 Energy Capacity 250 Matter Stores 300 Matter Capacity 300 Sight Range 18 Robot Scan Range 16 Terrain Scan Range 20 Terrain Scan Density 110 Armor Coverage 150 Evasion (%) 63 Offensive Hacking 10 Defensive Hacking 10 Item Schematics ----------------- None Robot Schematics ------------------ None Fabricated ------------ Nothing Repaired ---------- Nothing Alien Tech Used ----------------- None Achievements -------------- None Challenges ------------ None Game ------ Seed AluminumArmageddonCyclogen Manual? 0 Play Time 00:55:24 Cumulative 75.3 hours Start 2025.08.10 @ 23:32:05 End 2025.08.11 @ 01:12:18 Sessions 2 Manual Loads 0 Difficulty Rogue Special Mode None Game No. 24 Rogue 24 Adventurer 0 Explorer 0 Win Type - Total 1 Types 0/0/1/0/0/0/0/0/0/0 Lore% 56 Gallery% 52 Achievement% 75 Wizard Run 0 Options --------- Layout 2 ASCII 0 Keyboard 1 Movement Vi Keybinds 0 Fullscreen 1 Font 28/SwanstonBold Map View 50x52 Zoom Use 0% Tactical HUD 1 Map Filters NONE Filters NONE Steam 1 RUN: 753eb446-d03a-4515-906a-a53c357c2928